fUSD/lending_fUSD_20260203
["ID","MTS","AMOUNT","RATE_DAILY","PERIOD"]
[404369065,1770081050595,-151.0,0.00016,2]
[404369066,1770081050605,-1503.0,0.00016,2]
[404369067,1770081050614,-151.0,0.00016,2]
[404369068,1770081050623,-151.0,0.00016,2]
[404369069,1770081050632,-1503.0,0.00016,2]
[404369070,1770081050641,-151.0,0.00016,2]
[404369071,1770081050651,-1503.0,0.00016,2]
[404369072,1770081050660,-151.0,0.00016,2]
[404369073,1770081050669,-1503.0,0.00016,2]
[404369074,1770081050679,-1503.0,0.00016,2]
[404369075,1770081050688,-151.0,0.00016,2]
[404369076,1770081050696,-1503.0,0.00016,2]
[404369077,1770081050706,-151.0,0.00016,2]
[404369078,1770081050715,-1503.0,0.00016,2]
[404369079,1770081050724,-1503.0,0.00016,2]
[404369080,1770081050733,-151.0,0.00016,2]
[404369081,1770081050743,-151.0,0.00016,2]
[404369082,1770081050752,-1503.0,0.00016,2]
[404369083,1770081050762,-1503.0,0.00016,2]
[404369084,1770081050771,-151.0,0.00016,2]
[404369085,1770081050781,-1503.0,0.00016,2]
[404369086,1770081050790,-151.0,0.00016,2]
[404369087,1770081050799,-1503.0,0.00016,2]
[404369088,1770081050809,-151.0,0.00016,2]
[404369089,1770081050818,-1503.0,0.00016,2]
[404369090,1770081050828,-151.0,0.00016,2]
[404369091,1770081050840,-1503.0,0.00016,2]
[404369092,1770081050849,-151.0,0.00016,2]
[404369093,1770081050858,-1503.0,0.00016,2]
[404369094,1770081050869,-151.0,0.00016,2]
[404369095,1770081050879,-1503.0,0.00016,2]
[404369096,1770081050888,-1503.0,0.00016,2]
[404369097,1770081050897,-1503.0,0.00016,2]
[404369098,1770081050906,-1503.0,0.00016,2]
[404369099,1770081050917,-1503.0,0.00016,2]
[404369100,1770081050926,-1503.0,0.00016,2]
[404369101,1770081050936,-151.0,0.00016,2]
[404369102,1770081050946,-1503.0,0.00016,2]
[404369103,1770081050955,-151.0,0.00016,2]
[404369104,1770081050964,-151.0,0.00016,2]
[404369105,1770081050973,-151.0,0.00016,2]
[404369106,1770081050983,-500.0,0.00016028,2]
[404369107,1770081050992,-200.0,0.00016028,2]
[404369108,1770081051003,-879.518026,0.00016116,2]
[404369109,1770081051015,-879.518026,0.00016116,2]
[404369110,1770081051025,-879.518026,0.00016116,2]
[404369111,1770081051035,-879.518026,0.00016116,2]
[404369112,1770081051045,-9999.99,0.00016116,2]
[404369113,1770081051054,-217.15233878,0.0001614,2]
[404369114,1770081051063,-1776.30922209,0.0001614,2]
[404369115,1770081051072,-260.4103811,0.0001614,2]
[404369116,1770081051082,-200.0,0.0001616,2]
[404369117,1770081051091,-200.0,0.0001616,2]
[404369118,1770081051100,-5000.00522582,0.000162,5]
[404369119,1770081051110,-200.0,0.00016322,2]
[404369120,1770081051177,-200.0,0.00016322,2]
[404369121,1770081051187,-1846.7564426,0.00016338,2]
[404369122,1770081051196,-200.0,0.0001634,2]
[404369123,1770081051205,-519.2350024,0.00016437,2]
[404369124,1770081051215,-2000.0,0.00016438,2]
[404369125,1770081051225,-500.0,0.00016438,2]
[404369126,1770081051234,-311.03248964,0.00016438,2]
[404369127,1770081051243,-500.0,0.00016438,2]
[404369128,1770081051252,-500.0,0.00016438,2]
[404369129,1770081051262,-500.0,0.00016438,2]
[404369130,1770081051272,-1857.11079772,0.00016438,2]
[404369131,1770081051281,-1857.11079772,0.00016438,2]
[404369132,1770081051290,-1857.11079772,0.00016438,2]
[404369133,1770081051299,-1857.11079772,0.00016438,2]
[404369134,1770081051308,-1857.11079772,0.00016438,2]
[404369135,1770081051317,-1857.11079772,0.00016438,2]
[404369136,1770081051326,-1857.11079772,0.00016438,2]
[404369137,1770081051335,-1857.11079772,0.00016438,2]
[404369138,1770081051344,-1857.11079772,0.00016438,2]
[404369139,1770081051353,-1857.11079772,0.00016438,2]
[404369140,1770081051362,-1857.11079772,0.00016438,2]
[404369141,1770081051371,-1857.11079772,0.00016438,2]
[404369142,1770081051380,-1857.11079772,0.00016438,2]
[404369143,1770081051390,-1857.11079772,0.00016438,2]
[404369144,1770081051399,-1857.11079772,0.00016438,2]
[404369145,1770081051408,-1857.11079772,0.00016438,2]
[404369146,1770081051418,-1857.11079772,0.00016438,2]
[404369147,1770081051429,-1857.11079772,0.00016438,2]
[404369148,1770081051441,-1857.11079772,0.00016438,2]
[404369149,1770081051461,-1857.11079772,0.00016438,2]
[404369150,1770081051472,-1857.11079772,0.00016438,2]
[404369151,1770081051481,-1857.11079772,0.00016438,2]
[404369152,1770081051491,-1857.11079772,0.00016438,2]
[404369153,1770081051505,-1857.11079772,0.00016438,2]
[404369154,1770081051514,-1857.11079772,0.00016438,2]
[404369155,1770081051524,-1857.11079772,0.00016438,2]
[404369156,1770081051535,-1857.11079772,0.00016438,2]
[404369157,1770081051546,-1857.11079772,0.00016438,2]
[404369158,1770081051556,-1857.11079772,0.00016438,2]
[404369159,1770081051566,-1857.11079772,0.00016438,2]
[404369160,1770081051576,-1857.11079772,0.00016438,2]
[404369161,1770081051586,-1857.11079772,0.00016438,2]
[404369162,1770081051596,-1857.11079772,0.00016438,2]
[404369163,1770081051605,-1857.11079772,0.00016438,2]
[404369164,1770081051615,-1857.11079772,0.00016438,2]
[404369165,1770081051624,-1857.11079772,0.00016438,2]
[404369166,1770081051633,-1857.11079772,0.00016438,2]
[404369167,1770081051642,-1857.11079772,0.00016438,2]
[404369168,1770081051651,-1857.11079772,0.00016438,2]
[404369169,1770081051660,-1857.11079772,0.00016438,2]
[404369170,1770081051670,-1857.11079772,0.00016438,2]
[404369171,1770081051679,-1857.11079772,0.00016438,2]
[404369172,1770081051688,-1857.11079772,0.00016438,2]
[404369173,1770081051697,-1857.11079772,0.00016438,2]
[404369174,1770081051706,-1857.11079772,0.00016438,2]
[404369175,1770081051715,-1857.11079772,0.00016438,2]
[404369176,1770081051724,-1857.11079772,0.00016438,2]
[404369177,1770081051733,-1857.11079772,0.00016438,2]
[404369178,1770081051742,-1857.11079772,0.00016438,2]
[404369179,1770081051751,-1857.11079772,0.00016438,2]
[404369180,1770081051760,-1857.11079772,0.00016438,2]
[404369181,1770081051769,-1857.11079772,0.00016438,2]
[404369182,1770081051778,-1857.11079772,0.00016438,2]
[404369183,1770081051787,-1857.11079772,0.00016438,2]
[404369184,1770081051796,-1857.11079772,0.00016438,2]
[404369185,1770081051805,-1857.11079772,0.00016438,2]
[404369186,1770081051814,-1857.11079772,0.00016438,2]
[404369187,1770081051824,-1857.11079772,0.00016438,2]
[404369188,1770081051833,-1857.11079772,0.00016438,2]
[404369189,1770081051842,-1833.14807776,0.00016438,2]
[404369190,1770081051850,-1833.14807776,0.00016438,2]
[404369191,1770081051859,-1833.14807776,0.00016438,2]
[404369192,1770081051868,-1833.14807776,0.00016438,2]
[404369193,1770081051878,-1833.14807776,0.00016438,2]
[404369194,1770081051887,-1833.14807776,0.00016438,2]
[404369195,1770081051895,-1833.14807776,0.00016438,2]
[404369196,1770081051904,-1833.14807776,0.00016438,2]
[404369197,1770081051913,-1833.14807776,0.00016438,2]
[404369198,1770081051923,-1833.14807776,0.00016438,2]
[404369199,1770081051931,-1833.14807776,0.00016438,2]
[404369200,1770081051940,-1833.14807776,0.00016438,2]
[404369201,1770081051949,-1833.14807776,0.00016438,2]
[404369202,1770081051958,-1833.14807776,0.00016438,2]
[404369203,1770081051967,-1833.14807776,0.00016438,2]
[404369204,1770081051976,-1833.14807776,0.00016438,2]
[404369205,1770081051985,-1833.14807776,0.00016438,2]
[404369206,1770081051994,-1833.14807776,0.00016438,2]
[404369207,1770081052003,-1833.14807776,0.00016438,2]
[404369208,1770081052015,-1833.14807776,0.00016438,2]
[404369209,1770081052024,-1833.14807776,0.00016438,2]
[404369210,1770081052033,-1833.14807776,0.00016438,2]
[404369211,1770081052042,-1833.14807776,0.00016438,2]
[404369212,1770081052052,-1833.14807776,0.00016438,2]
[404369213,1770081052063,-1833.14807776,0.00016438,2]
[404369214,1770081052072,-1833.14807776,0.00016438,2]
[404369215,1770081052082,-1833.14807776,0.00016438,2]
[404369216,1770081052094,-1833.14807776,0.00016438,2]
[404369217,1770081052117,-1833.14807776,0.00016438,2]
[404369218,1770081052126,-1833.14807776,0.00016438,2]
[404369219,1770081052136,-1833.14807776,0.00016438,2]
[404369220,1770081052145,-151.0,0.00016438,2]
[404369221,1770081052154,-227.24,0.00016438,2]
[404369222,1770081052168,-7810.3,0.00016438,2]
[404369223,1770081052177,-900.0,0.00016438,2]
[404369224,1770081052186,-150.25668222,0.00016438,2]
[404369225,1770081052196,-1000.0,0.00016438,2]
[404369226,1770081052207,-800.0,0.00016438,2]
[404369227,1770081052216,-444.913342,0.00016438,2]
[404369228,1770081052226,-444.913342,0.00016438,2]
[404369229,1770081052236,-444.913342,0.00016438,2]
[404369230,1770081052246,-444.913342,0.00016438,2]
[404369231,1770081052253,-196.06104,0.00016438,2]
[404369232,1770081052264,-196.06104,0.00016438,2]
[404369233,1770081052274,-196.06104,0.00016438,2]
[404369234,1770081052295,-196.06104,0.00016438,2]
[404369235,1770081052306,-196.06104,0.00016438,2]
[404369236,1770081052315,-196.06104,0.00016438,2]
[404369237,1770081052324,-196.06104,0.00016438,2]
[404369238,1770081052334,-196.06104,0.00016438,2]
[404369239,1770081052345,-151.0,0.00016438,2]
[404369240,1770081052354,-151.0,0.00016438,2]
[404369241,1770081052362,-151.0,0.00016438,2]
[404369242,1770081052371,-151.0,0.00016438,2]
[404369243,1770081052380,-151.0,0.00016438,2]
[404369244,1770081052389,-151.0,0.00016438,2]
[404369245,1770081052398,-3000.0,0.00016438,2]
[404369246,1770081052407,-1725.59276534,0.00016444,2]
[404369247,1770081052419,-200.0,0.00016485,2]
[404369248,1770081052432,-200.0,0.00016485,2]
[404369249,1770081052443,-1000.0,0.00016515,2]
[404369250,1770081052454,-200.02287089,0.00016544,2]
[404369251,1770081052464,-159.60859955,0.00016566,2]
[404369252,1770081052473,-500.0,0.00016576,2]
[404369253,1770081052482,-200.0,0.00016576,2]
[404369254,1770081052491,-1846.75644256,0.00016598,2]
[404369255,1770081052503,-360.77468192,0.000166,2]
[404369256,1770081052516,-200.0,0.0001665,2]
[404369257,1770081052525,-200.0,0.0001665,2]
[404369258,1770081052535,-16763.1750962,0.00016657,2]
[404369259,1770081052544,-151.0,0.00016657,2]
[404369260,1770081052553,-151.0,0.00016657,2]
[404369261,1770081052564,-163.218914,0.00016657,2]
[404369262,1770081052573,-197.22189,0.00016657,2]
[404369263,1770081052583,-197.22189,0.00016657,2]
[404369264,1770081052594,-197.22189,0.00016657,2]
[404369265,1770081052604,-197.22189,0.00016657,2]
[404369266,1770081052614,-171.904398,0.00016657,2]
[404369267,1770081052625,-692.662916,0.00016657,2]
[404369268,1770081052635,-2404.613525,0.00016657,2]
[404369269,1770081052644,-171.904398,0.00016657,2]
[404369270,1770081052654,-444.913342,0.00016657,2]
[404369271,1770081052663,-692.662916,0.00016657,2]
[404369272,1770081052675,-2404.613525,0.00016657,2]
[404369273,1770081052686,-171.904398,0.00016657,2]
[404369274,1770081052697,-444.913342,0.00016657,2]
[404369275,1770081052708,-692.662916,0.00016657,2]
[404369276,1770081052718,-2404.613525,0.00016657,2]
[404369277,1770081052728,-171.904398,0.00016657,2]
[404369278,1770081052738,-444.913342,0.00016657,2]
[404369279,1770081052747,-2404.613525,0.00016657,2]
[404369280,1770081052760,-692.662916,0.00016657,2]
[404369281,1770081052769,-444.913342,0.00016657,2]
[404369282,1770081052779,-421.88469562,0.00016662,2]
[404369283,1770081052788,-352.79,0.00016665,2]
[404369284,1770081052798,-225.18697532,0.00016688,2]
[404369285,1770081052808,-1842.03266331,0.00016688,2]
[404369286,1770081052817,-270.0455652,0.00016688,2]
[404369287,1770081052827,-1000.0,0.00016712,2]
[404369288,1770081052836,-165.79,0.00016712,2]
[404369289,1770081052846,-219.544,0.00016797,2]
[404369290,1770081052855,-1846.75644256,0.00016859,2]
[404369291,1770081052864,-3286.0,0.00016907,2]
[404369292,1770081052874,-5462.0,0.00016909,2]
[404369293,1770081052883,-5462.0,0.00016946,2]
[404369294,1770081052893,-359.76179104,0.00016959,2]
[404369295,1770081052903,-3286.0,0.00016986,2]
[404369296,1770081052912,-1000.0,0.00016986,2]
[404369297,1770081052922,-2172.44734327,0.00016986,2]
[404369298,1770081052932,-151.0,0.00016997,2]
[404369299,1770081052942,-5462.0,0.00016999,2]
[404369300,1770081052951,-381303.71785566,0.00017,2]
[404369301,1770081052960,-151.0,0.00017,2]
[404369302,1770081052970,-151.0,0.00017,2]
[404369303,1770081052980,-300.0,0.00017,2]
[404369304,1770081052990,-156.52398,0.00017,2]
[404369305,1770081052999,-156.52398,0.00017,2]
[404369306,1770081053009,-156.52398,0.00017,2]
[404369307,1770081053019,-156.52398,0.00017,2]
[404369308,1770081053030,-5462.0,0.00017037,2]
[404369309,1770081053040,-1000.0,0.00017112,2]
[404369310,1770081053050,-1846.75644256,0.00017119,2]
[404369311,1770081053061,-500.0,0.00017123,2]
[404369312,1770081053071,-500.0,0.00017124,2]
[404369313,1770081053081,-230.88290778,0.00017124,2]
[404369314,1770081053091,-5462.0,0.00017145,2]
[404369315,1770081053101,-1500.0,0.000172,2]
[404369316,1770081053111,-233.51889341,0.00017236,2]
[404369317,1770081053127,-1910.18787185,0.00017236,2]
[404369318,1770081053138,-280.03725112,0.00017236,2]
[404369319,1770081053149,-404.429321,0.0001726,2]
[404369320,1770081053160,-404.429321,0.0001726,2]
[404369321,1770081053171,-404.429321,0.0001726,2]
[404369322,1770081053182,-404.429321,0.0001726,2]
[404369323,1770081053192,-404.429321,0.0001726,2]
[404369324,1770081053202,-404.429321,0.0001726,2]
[404369325,1770081053212,-404.429321,0.0001726,2]
[404369326,1770081053225,-404.429321,0.0001726,2]
[404369327,1770081053236,-1000.0,0.0001726,2]
[404369328,1770081053246,-3286.0,0.00017288,2]
[404369329,1770081053256,-5888.0,0.00017319,2]
[404369330,1770081053267,-5888.0,0.00017331,2]
[404369331,1770081053277,-5888.0,0.00017333,2]
[404369332,1770081053288,-200.0,0.00017363,2]
[404369333,1770081053298,-200.0,0.00017375,2]
[404369334,1770081053308,-1846.75644256,0.00017379,2]
[404369335,1770081053318,-352.79,0.0001739,2]
[404369336,1770081053328,-500.0,0.00017471,2]
[404369337,1770081053338,-5888.0,0.00017472,2]
[404369338,1770081053347,-201.25,0.00017477,2]
[404369339,1770081053357,-5462.0,0.00017482,2]
[404369340,1770081053368,-2361.0,0.00017486,2]
[404369341,1770081053379,-12649.0,0.00017486,2]
[404369342,1770081053390,-159.60859955,0.00017487,2]
[404369343,1770081053400,-1000.0,0.00017534,2]
[404369344,1770081053410,-201.25,0.00017591,2]
[404369345,1770081053420,-2352.0,0.000176,2]
[404369346,1770081053432,-1846.75644256,0.0001764,2]
[404369347,1770081053442,-1154.18303728,0.0001764,2]
[404369348,1770081053452,-500.0,0.00017672,2]
[404369349,1770081053462,-151.0,0.00017698,2]
[404369350,1770081053475,-234.50786848,0.00017698,2]
[404369351,1770081053485,-150.0,0.00017698,2]
[404369352,1770081053496,-500.0,0.00017698,2]
[404369353,1770081053507,-500.0,0.00017698,2]
[404369354,1770081053518,-150.10178686,0.00017698,2]
[404369355,1770081053528,-150.0,0.00017698,2]
[404369356,1770081053539,-150.86853195,0.00017698,2]
[404369357,1770081053550,-500.0,0.00017698,2]
[404369358,1770081053561,-500.0,0.00017698,2]
[404369359,1770081053571,-479.0,0.00017698,2]
[404369360,1770081053581,-150.0,0.00017698,2]
[404369361,1770081053593,-150.0,0.00017698,2]
[404369362,1770081053602,-570.0,0.00017698,2]
[404369363,1770081053613,-500.0,0.00017698,2]
[404369364,1770081053627,-150.0,0.00017698,2]
[404369365,1770081053639,-691.0,0.00017698,2]
[404369366,1770081053649,-500.0,0.00017698,2]
[404369367,1770081053659,-150.0,0.00017698,2]
[404369368,1770081053669,-500.0,0.00017698,2]
[404369369,1770081053680,-150.0,0.00017698,2]
[404369370,1770081053691,-150.96565967,0.00017698,2]
[404369371,1770081053701,-500.0,0.00017698,2]
[404369372,1770081053713,-787.0,0.00017698,2]
[404369373,1770081053723,-500.0,0.00017698,2]
[404369374,1770081053734,-150.0,0.00017698,2]
[404369375,1770081053749,-737.0,0.00017698,2]
[404369376,1770081053767,-150.0,0.00017698,2]
[404369377,1770081053777,-159.52608092,0.00017698,2]
[404369378,1770081053788,-500.0,0.00017698,2]
[404369379,1770081053800,-500.0,0.00017698,2]
[404369380,1770081053810,-2028.0,0.00017698,2]
[404369381,1770081053820,-467.0,0.00017698,2]
[404369382,1770081053832,-500.0,0.00017698,2]
[404369383,1770081053842,-166.03343311,0.00017698,2]
[404369384,1770081053853,-150.0,0.00017698,2]
[404369385,1770081053865,-150.0,0.00017698,2]
[404369386,1770081053875,-500.0,0.00017698,2]
[404369387,1770081053886,-500.0,0.00017698,2]
[404369388,1770081053897,-565.0,0.00017698,2]
[404369389,1770081053907,-500.0,0.00017698,2]
[404369390,1770081053917,-900.0,0.00017698,2]
[404369391,1770081053928,-150.0,0.00017698,2]
[404369392,1770081053938,-500.0,0.00017698,2]
[404369393,1770081053949,-150.0,0.00017698,2]
[404369394,1770081053960,-3574.72576844,0.000177,2]
[404369395,1770081053969,-201.25,0.00017706,2]
[404369396,1770081053980,-1000.0,0.00017709,2]
[404369397,1770081053990,-1851.12186116,0.0001773,2]
[404369398,1770081054000,-150.0,0.00017753,2]
[404369399,1770081054010,-500.0,0.00017753,2]
[404369400,1770081054021,-500.0,0.00017753,2]
[404369401,1770081054031,-150.0,0.00017753,2]
[404369402,1770081054045,-500.0,0.00017753,2]
[404369403,1770081054056,-500.0,0.00017753,2]
[404369404,1770081054066,-479.0,0.00017753,2]
[404369405,1770081054082,-150.0,0.00017753,2]
[404369406,1770081054092,-150.38249848,0.00017753,2]
[404369407,1770081054103,-570.0,0.00017753,2]
[404369408,1770081054116,-500.0,0.00017753,2]
[404369409,1770081054126,-150.0,0.00017753,2]
[404369410,1770081054136,-691.0,0.00017753,2]
[404369411,1770081054146,-500.0,0.00017753,2]
[404369412,1770081054157,-500.0,0.00017753,2]
[404369413,1770081054167,-500.0,0.00017753,2]
[404369414,1770081054177,-787.0,0.00017753,2]
[404369415,1770081054187,-500.0,0.00017753,2]
[404369416,1770081054197,-150.0,0.00017753,2]
[404369417,1770081054207,-737.0,0.00017753,2]
[404369418,1770081054217,-150.0,0.00017753,2]
[404369419,1770081054228,-500.0,0.00017753,2]
[404369420,1770081054238,-500.0,0.00017753,2]
[404369421,1770081054247,-2028.0,0.00017753,2]
[404369422,1770081054257,-467.0,0.00017753,2]
[404369423,1770081054268,-500.0,0.00017753,2]
[404369424,1770081054278,-150.0,0.00017753,2]
[404369425,1770081054288,-500.0,0.00017753,2]
[404369426,1770081054298,-500.0,0.00017753,2]
[404369427,1770081054308,-565.0,0.00017753,2]
[404369428,1770081054318,-500.0,0.00017753,2]
[404369429,1770081054327,-900.0,0.00017753,2]
[404369430,1770081054337,-500.0,0.00017753,2]
[404369431,1770081054347,-242.15909246,0.00017784,2]
[404369432,1770081054357,-1980.86482311,0.00017784,2]
[404369433,1770081054366,-290.39862941,0.00017784,2]
[404369434,1770081054376,-1000.0,0.00017797,2]
[404369435,1770081054386,-1000.0,0.00017797,2]
[404369436,1770081054396,-1000.0,0.00017797,2]
[404369437,1770081054406,-1000.0,0.00017797,2]
[404369438,1770081054416,-1000.0,0.00017797,2]
[404369439,1770081054426,-895.269,0.00017797,2]
[404369440,1770081054438,-166.3626574,0.00017808,2]
[404369441,1770081054448,-249.274,0.00017808,2]
[404369442,1770081054458,-500.0,0.00017808,2]
[404369443,1770081054470,-150.0,0.00017808,2]
[404369444,1770081054479,-500.0,0.00017808,2]
[404369445,1770081054488,-479.0,0.00017808,2]
[404369446,1770081054499,-150.0,0.00017808,2]
[404369447,1770081054509,-500.0,0.00017808,2]
[404369448,1770081054518,-570.0,0.00017808,2]
[404369449,1770081054528,-500.0,0.00017808,2]
[404369450,1770081054537,-150.0,0.00017808,2]
[404369451,1770081054548,-691.0,0.00017808,2]
[404369452,1770081054558,-500.0,0.00017808,2]
[404369453,1770081054567,-328.08780435,0.00017808,2]
[404369454,1770081054577,-156.23659199,0.00017808,2]
[404369455,1770081054587,-787.0,0.00017808,2]
[404369456,1770081054597,-500.0,0.00017808,2]
[404369457,1770081054607,-150.0,0.00017808,2]
[404369458,1770081054617,-737.0,0.00017808,2]
[404369459,1770081054626,-150.0,0.00017808,2]
[404369460,1770081054636,-500.0,0.00017808,2]
[404369461,1770081054645,-500.0,0.00017808,2]
[404369462,1770081054655,-2028.0,0.00017808,2]
[404369463,1770081054664,-467.0,0.00017808,2]
[404369464,1770081054673,-500.0,0.00017808,2]
[404369465,1770081054683,-150.0,0.00017808,2]
[404369466,1770081054692,-500.0,0.00017808,2]
[404369467,1770081054701,-500.0,0.00017808,2]
[404369468,1770081054710,-565.0,0.00017808,2]
[404369469,1770081054720,-500.0,0.00017808,2]
[404369470,1770081054731,-900.0,0.00017808,2]
[404369471,1770081054740,-500.0,0.00017808,2]
[404369472,1770081054750,-500.0,0.00017808,2]
[404369473,1770081054760,-1000.0,0.00017808,2]
[404369474,1770081054769,-180.0,0.00017808,10]
[404369475,1770081054779,-170.864043,0.00017808,10]
[404369476,1770081054789,-2000.0,0.0001782,2]
[404369477,1770081054798,-2000.0,0.0001782,2]
[404369478,1770081054992,-25000.0,0.00017856,3]
[404369479,1770081055004,-200.0,0.00017856,2]
[404369480,1770081055015,-583.41072536,0.00017862,2]
[404369481,1770081055024,-150.0,0.00017862,2]
[404369482,1770081055033,-500.0,0.00017862,2]
[404369483,1770081055042,-479.0,0.00017862,2]
[404369484,1770081055051,-150.0,0.00017862,2]
[404369485,1770081055061,-500.0,0.00017862,2]
[404369486,1770081055070,-570.0,0.00017862,2]
[404369487,1770081055080,-500.0,0.00017862,2]
[404369488,1770081055089,-150.0,0.00017862,2]
[404369489,1770081055098,-691.0,0.00017862,2]
[404369490,1770081055108,-500.0,0.00017862,2]
[404369491,1770081055118,-787.0,0.00017862,2]
[404369492,1770081055127,-500.0,0.00017862,2]
[404369493,1770081055137,-737.0,0.00017862,2]
[404369494,1770081055146,-150.0,0.00017862,2]
[404369495,1770081055155,-500.0,0.00017862,2]
[404369496,1770081055164,-500.0,0.00017862,2]
[404369497,1770081055173,-2028.0,0.00017862,2]
[404369498,1770081055182,-467.0,0.00017862,2]
[404369499,1770081055191,-500.0,0.00017862,2]
[404369500,1770081055201,-282.25840253,0.00017862,2]
[404369501,1770081055210,-500.0,0.00017862,2]
[404369502,1770081055220,-500.0,0.00017862,2]
[404369503,1770081055229,-565.0,0.00017862,2]
[404369504,1770081055238,-500.0,0.00017862,2]
[404369505,1770081055247,-900.0,0.00017862,2]
[404369506,1770081055256,-500.0,0.00017862,2]
[404369507,1770081055265,-500.0,0.00017863,2]
[404369508,1770081055274,-25000.0,0.00017865,3]
[404369509,1770081055283,-25000.0,0.00017874,3]
[404369510,1770081055292,-25000.0,0.00017874,3]
[404369511,1770081055301,-200.0,0.00017879,2]
[404369512,1770081055310,-151.0,0.00017882,2]
[404369513,1770081055318,-151.0,0.00017882,2]
[404369514,1770081055327,-151.0,0.00017882,2]
[404369515,1770081055336,-25000.0,0.00017882,3]
[404369516,1770081055345,-25000.0,0.00017882,3]
[404369517,1770081055355,-25000.0,0.00017891,3]
[404369518,1770081055364,-25000.0,0.00017891,3]
[404369519,1770081055373,-500.0,0.000179,2]
[404369520,1770081055383,-20453.46079029,0.000179,3]
[404369521,1770081055392,-1846.75644256,0.000179,2]
[404369522,1770081055400,-25000.0,0.000179,3]
[404369523,1770081055409,-25000.0,0.000179,3]
[404369524,1770081055418,-879.518026,0.000179,2]
[404369525,1770081055429,-879.518026,0.000179,2]
[404369526,1770081055438,-879.518026,0.000179,2]
[404369527,1770081055447,-879.518026,0.000179,2]
[404369528,1770081055457,-173.42596126,0.000179,2]
[404369529,1770081055467,-3724.91484919,0.000179,2]
[404369530,1770081055476,-196.06104,0.000179,2]
[404369531,1770081055486,-196.06104,0.000179,2]
[404369532,1770081055495,-196.06104,0.000179,2]
[404369533,1770081055504,-196.06104,0.000179,2]
[404369534,1770081055514,-739.4235685,0.000179,2]
[404369535,1770081055523,-9069.86614708,0.000179,2]
[404369536,1770081055533,-151.0,0.00017917,2]
[404369537,1770081055543,-151.0,0.00017917,2]
[404369538,1770081055552,-214.97672583,0.00017917,2]
[404369539,1770081055561,-500.0,0.00017917,2]
[404369540,1770081055570,-479.0,0.00017917,2]
[404369541,1770081055579,-150.0,0.00017917,2]
[404369542,1770081055588,-500.0,0.00017917,2]
[404369543,1770081055597,-570.0,0.00017917,2]
[404369544,1770081055607,-500.0,0.00017917,2]
[404369545,1770081055615,-291.47561802,0.00017917,2]
[404369546,1770081055624,-691.0,0.00017917,2]
[404369547,1770081055633,-283.08294419,0.00017917,2]
[404369548,1770081055644,-787.0,0.00017917,2]
[404369549,1770081055658,-500.0,0.00017917,2]
[404369550,1770081055667,-737.0,0.00017917,2]
[404369551,1770081055676,-150.0,0.00017917,2]
[404369552,1770081055686,-500.0,0.00017917,2]
[404369553,1770081055696,-2028.0,0.00017917,2]
[404369554,1770081055705,-500.0,0.00017917,2]
[404369555,1770081055714,-467.0,0.00017917,2]
[404369556,1770081055726,-500.0,0.00017917,2]
[404369557,1770081055735,-500.0,0.00017917,2]
[404369558,1770081055744,-500.0,0.00017917,2]
[404369559,1770081055753,-565.0,0.00017917,2]
[404369560,1770081055763,-500.0,0.00017917,2]
[404369561,1770081055772,-900.0,0.00017917,2]
[404369562,1770081055781,-500.0,0.00017917,2]
[404369563,1770081055790,-500.0,0.00017918,2]
[404369564,1770081055799,-5462.0,0.00017934,2]